Cogmind - Beta 17 @@@ ROGUE MODE // 2026.06.22 @ 23:24:26 Player: jumpy Result: Destroyed by H-71 Marshal with Heavy Mass Driver Performance ------------- Evolutions (6) 3000 Regions Visited (8) 1600 Robots Destroyed (58) 290 Value Destroyed (1431) 1431 Prototype IDs (8) 160 Alien Tech Used (0) 0 Bonus (7327) 7327 TOTAL SCORE: 13808 Bonus ------- High Alert Combat Kills 44 Follower Combat Kills 283 Prayed to X0-1V1 5000 Major X0-1V1 Interference 1500 Entered DSFs 500 Cogmind --------- Core Integrity 0/875 Matter 290/300 Energy 280/300 System Corruption 0% Temperature Cool (36) Movement Core (50) Location -4/DSF Parts ------- > --- POWER (2) -------- (None) > --- PROPULSION (6) --- (None) > --- UTILITY (9) ------ Advanced Signal Interpreter Hacking Suite X0-1V1's Piety Tracker > --- WEAPON (2) ------- (None) > --- INVENTORY (5) ---- Reinforced Fission Core Improved Carbon-fiber Leg Long-range Proton Cannon Antimatter Cannon Long-range Missile Launcher Peak State ------------ > --- POWER ------------ Reinforced Fission Core > --- PROPULSION ------- Airjet Airjet Aerolev Unit Aerolev Unit Gravmag System > --- UTILITY ---------- Medium Storage Unit Improved Melee Analysis Suite Stasis Canceller Hacking Suite Hacking Suite X0-1V1's Piety Tracker > --- WEAPON ----------- Power Maul Scimitar of Distortion > --- INVENTORY -------- Improved Carbon-fiber Leg Improved Carbon-fiber Leg Airjet Aerolev Unit Seismic Detector Antimatter Cannon Improved Grenade Launcher Power Sword [Rating: 66] Favorites ----------- Power Light Ion Engine Engine Light Ion Engine Power Core Light Nuclear Core Propulsion Airjet Leg Aluminum Leg Hover Unit Airjet Utility Hacking Suite Device X0-1V1's Piety Tracker Storage Medium Storage Unit Processor Improved Melee Analysis Suite Hackware Hacking Suite Protection Improved Propulsion Shielding Weapon Medium Laser Energy Gun Medium Laser Ballistic Gun Improved Assault Rifle Ballistic Cannon Antimatter Cannon Launcher Rocket Launcher Special Weapon Mining Laser Impact Weapon Power Maul Slashing Weapon Scimitar of Distortion Piercing Weapon Kinetic Spear Build | -11 -10 -9 -8 -7 -6 -5 -4 -4 ------- Run | Yrd Mat Mat Mat Fac Fac Fac Fac DSF Slots Evolved 12 | . . 2 2 2 2 2 2 . Power . | . . . . . . . . . Propulsion 4 | . . 1 1 . 1 1 . . Utility 8 | . . 1 1 2 1 1 2 . Weapon . | . . . . . . . . . Parts Attached 61 | 8 9 8 7 15 10 3 . 1 Power 6 | 1 1 . 1 1 2 . . . Engine 3 | 1 1 . . . 1 . . . Core 3 | . . . 1 1 1 . . . Reactor . | . . . . . . . . . Propulsion 25 | 2 3 3 4 9 3 1 . . Treads . | . . . . . . . . . Leg 10 | 2 . 3 4 . . 1 . . Wheel . | . . . . . . . . . Hover 15 | . 3 . . 9 3 . . . Flight . | . . . . . . . . . Utility 15 | 3 2 2 1 2 3 1 . 1 Device 8 | 2 2 1 . . 1 1 . 1 Storage 2 | 1 . 1 . . . . . . Processor 2 | . . . . . 2 . . . Hackware 2 | . . . 1 1 . . . . Protection 1 | . . . . 1 . . . . Artifact . | . . . . . . . . . Weapon 15 | 2 3 3 1 3 2 1 . . Energy Gun 4 | . 2 1 1 . . . . . Energy Cannon . | . . . . . . . . . Ballistic Gun 4 | 2 . 2 . . . . . . Ballistic Cannon 1 | . . . . . 1 . . . Launcher 2 | . 1 . . 1 . . . . Special Weapon 1 | . . . . 1 . . . . Impact Weapon 1 | . . . . 1 . . . . Slashing Weapon 1 | . . . . . 1 . . . Piercing Weapon 1 | . . . . . . 1 . . Special Melee Weapon . | . . . . . . . . . Unidentified Prototypes 8 | . 1 1 . 3 2 1 . . Parts Lost 35 | . 8 2 . 11 3 . . 11 Power 6 | . 2 . . 3 . . . 1 Propulsion 16 | . 3 1 . 5 3 . . 4 Utility 6 | . 1 . . 1 . . . 4 Weapon 7 | . 2 1 . 2 . . . 2 Highest Loss Streak 11 | . 4 2 . 2 3 . . 11 To Critical Strikes . | . . . . . . . . . Average Backups 6 | 2 7 3 3 8 8 9 8 6 Power . | . . . . . . 1 1 1 Propulsion 2 | 1 1 . 1 6 4 1 1 1 Utility 1 | . 2 1 1 1 1 1 1 . Weapon 2 | . 2 2 1 1 2 4 5 4 Tool/Special . | . . . . . . . . . Unused Backups 13 | . 6 . . 2 . . . 5 Power . | . . . . . . . . . Propulsion 6 | . 3 . . 2 . . . 1 Utility 2 | . 2 . . . . . . . Weapon 5 | . 1 . . . . . . 4 Tool/Special . | . . . . . . . . . Average Slot Usage (%) 74 | . 92 34 64 76 74 70 68 47 Engine 4 | . 13 . . . 2 5 5 3 Core 2 | . . . 3 5 . . . . Leg 6 | . 4 14 27 1 . . . . Hover 19 | . 22 . . 28 28 23 21 9 Device 8 | . 13 8 9 7 6 5 10 9 Storage 8 | . 13 2 9 7 6 5 5 3 Processor 1 | . . . . . 4 10 5 5 Hackware 7 | . . . 5 14 13 11 10 7 Energy Gun 6 | . 20 3 1 3 . . . . Ballistic Gun 2 | . 2 3 9 1 . . . . Impact Weapon 1 | . . . . 2 4 . . . Slashing Weapon 1 | . . . . . 3 5 5 3 Peak Build Rating 66 | 7 19 20 37 47 66 66 62 66 Average Rating 31 | 5 9 12 29 42 52 58 62 43 On Entrance 33 | . 7 13 19 37 40 57 62 62 Avg Prop Armor Cover (%) . | . . . . . . . . . Naked Turns 7 | . 7 . . . . . . . Heaviest Build 39 | 11 13 14 22 28 39 34 31 35 Greatest Support 56 | 20 20 30 56 56 41 33 33 33 Greatest Overweight (x) 10 | . 1 . . 2 1 1 . 10 Average Overweight (x) . | . . . . . . . . . Largest Inventory Capacity 10 | 8 8 10 10 10 10 10 10 10 Average Capacity 9 | 7 7 6 10 10 10 10 10 8 Most Carried 10 | 6 8 5 4 10 10 10 8 8 Average Carried 6 | 2 7 3 3 8 8 9 8 6 Final Capacity 10 | 8 5 10 10 10 10 10 10 5 Final Carried 9 | 6 5 2 4 7 9 8 8 5 Class Distribution -------------------- 51% | Mutant 42% | Hacker-Mutant 5% | Hacker-Gladiator Dominant Class ---------------- Mutant | -10/Materials Mutant | -9/Materials Mutant | -8/Materials Hacker-Mutant | -7/Factory Hacker-Mutant | -6/Factory Hacker-Mutant | -5/Factory Hacker-Mutant | -4/Factory Hacker-Mutant | -4/DSF Resources | -11 -10 -9 -8 -7 -6 -5 -4 -4 ----------- Run | Yrd Mat Mat Mat Fac Fac Fac Fac DSF Matter Collected 1362 | 277 46 86 261 374 318 . . . Remotely . | . . . . . . . . . Salvage Created 2111 | 118 82 269 130 727 558 151 . 76 Parts 96 | 7 6 14 8 33 16 12 . . Haulers Intercepted 3 | . . 1 1 1 . . . . Recyclers Shooed 2 | . . 1 . 1 . . . . Parts Field Recycled . | . . . . . . . . . Retrieved Matter . | . . . . . . . . . Parts Self-Destructed . | . . . . . . . . . Prevented . | . . . . . . . . . Parts Restored . | . . . . . . . . . Kills | -11 -10 -9 -8 -7 -6 -5 -4 -4 ------- Run | Yrd Mat Mat Mat Fac Fac Fac Fac DSF Combat Hostiles Destroyed 26 | . 4 5 1 13 2 . . 1 Melee 7 | . . . . 5 2 . . . Guns 4 | . 1 1 1 1 . . . . AOE 10 | . 3 4 . 3 . . . . Classes Destroyed 13 | 2 2 2 1 3 . 2 . 1 Worker 8 | . . . 1 3 4 . . . Builder 9 | . . 1 . 3 2 3 . . Tunneler 3 | 2 . . . . . 1 . . Hauler 3 | . . 1 1 1 . . . . Recycler 5 | 1 . 1 . . 3 . . . Mechanic 1 | . . . . . . 1 . . Watcher 1 | . . . . . . 1 . . Swarmer 3 | . 3 . . . . . . . Grunt 18 | . 1 5 1 10 1 . . . Duelist 2 | . . . . 1 1 . . . Specialist 1 | . . . . . . . . 1 Hunter 3 | . . . . 3 . . . . Programmer 1 | . . . . 1 . . . . Best Kill Streak 7 | 1 3 7 2 6 3 4 . 1 Combat Bots Only 4 | . 3 4 1 3 2 . . 1 Max Kills in Single Turn 3 | 1 3 2 1 3 1 1 . 1 Gunslinging . | . . . . . . . . . Exploded 3 | . 3 2 . 2 . . . . Melee 1 | . . . . 1 1 . . . Uniques/NPCs Destroyed . | . . . . . . . . . Combat | -11 -10 -9 -8 -7 -6 -5 -4 -4 -------- Run | Yrd Mat Mat Mat Fac Fac Fac Fac DSF Hostile Shots Fired 435 | . 74 32 21 155 29 8 . 116 Missed 174 | . 27 11 6 78 9 3 . 40 Hits 261 | . 47 21 15 77 20 5 . 76 Melee 4 | . . 1 . 1 2 . . . Projectile 257 | . 47 20 15 76 18 5 . 76 Critical Strikes 3 | . . 1 1 . 1 . . . Damage Taken 3802 | . 556 325 223 953 292 39 . 1414 Core 1431 | . 123 69 58 193 33 39 . 916 Absorbed by Shields . | . . . . . . . . . Redirected to Shielding 100 | . . . . 100 . . . . Core Remaining (%) 84 | 100 50 77 87 88 94 94 . . Volleys Fired 99 | 13 5 15 18 48 . . . . Largest 2 | 2 2 2 1 2 . . . . Hottest 100 | 40 100 53 23 73 . . . . Shots Fired 126 | 26 10 18 18 54 . . . . Gun 113 | 26 9 13 18 47 . . . . Cannon . | . . . . . . . . . Launcher 13 | . 1 5 . 7 . . . . Special . | . . . . . . . . . Kinetic 54 | 26 . 4 18 6 . . . . Thermal 18 | . 9 9 . . . . . . Explosive 13 | . 1 5 . 7 . . . . Electromagnetic 41 | . . . . 41 . . . . Robot Hit Streak 12 | 10 6 7 12 5 . . . . Robot Miss Streak 4 | 2 1 4 4 4 . . . . Penetration Max . | . . . . . . . . . Secondary Targets . | . . . . . . . . . Shots Hit Robots 122 | 18 8 9 16 38 21 7 . 5 Core Hits 77 | 6 7 19 4 30 7 3 . 1 Critical Kills 3 | . . . . 3 . . . . Critical Parts Destroyed 6 | . . . 1 2 3 . . . Critical Strikes 11 | . 2 . 1 5 3 . . . Burn 2 | . 2 . . . . . . . Destroy 1 | . . . 1 . . . . . Smash 8 | . . . . 5 3 . . . Melee Attacks 66 | . . . . 20 28 11 . 7 Impact 27 | . . . . 20 7 . . . Slashing 38 | . . . . . 21 11 . 6 Piercing 1 | . . . . . . . . 1 Sneak Attacks 14 | . . . . . 9 5 . . Combat Hostiles . | . . . . . . . . . Follow-up Attacks 3 | . . . . . 2 . . 1 Damage Inflicted 5203 | 151 204 678 263 1938 1410 412 . 147 Guns 1011 | 151 87 115 248 410 . . . . Cannons 90 | . . . . . 90 . . . Explosions 1565 | . 117 563 . 885 . . . . Melee 2522 | . . . . 643 1320 412 . 147 Ramming 15 | . . . 15 . . . . . Kinetic 498 | 151 . 27 248 72 . . . . Thermal 227 | . 87 88 . 52 . . . . Explosive 1513 | . 117 563 . 833 . . . . Electromagnetic 338 | . . . . 338 . . . . Impact 1253 | . . . . 643 610 . . . Slashing 1222 | . . . . . 710 412 . 100 Piercing 47 | . . . . . . . . 47 Phasic 90 | . . . . . 90 . . . Highest Corruption 5 | . . 5 . 3 . 5 . . Average Corruption 3 | . . 5 . 3 . 5 . . Corruption Purged . | . . . . . . . . . Corruption Blocked . | . . . . . . . . . Effects 6 | . . 1 . 4 . 1 . . Heat Flow Errors 2 | . . . . 1 . 1 . . Data Loss (minor) 3 | . . . . 3 . . . . Misfires 1 | . . 1 . . . . . . Overload Shots . | . . . . . . . . . Overflow Damage 988 | . . 3 . 226 684 75 . . Projectiles 30 | . . . . . 30 . . . Explosions 86 | . . 3 . 83 . . . . Melee 872 | . . . . 143 654 75 . . Knockbacks 6 | . . . . 2 4 . . . Impact 6 | . . . . 2 4 . . . Kinetic . | . . . . . . . . . Secondary . | . . . . . . . . . Self-Inflicted Damage 155 | . . 56 . 99 . . . . Shots 5 | . . 2 . 3 . . . . Rammed 1 | . 1 . . . . . . . Targets Rammed 3 | . 1 . 2 . . . . . Kicked 2 | . . . 2 . . . . . Crushed . | . . . . . . . . . Highest Temperature 227 | . 171 22 . 227 . 115 . . Average Temperature 52 | . 76 14 . 41 . 97 . . Received Heat Transfer 1377 | . 303 102 153 315 84 . . 420 Siege Activations . | . . . . . . . . . Martial Activations . | . . . . . . . . . Shielding Activations . | . . . . . . . . . Robots Disrupted . | . . . . . . . . . Combat Hostiles . | . . . . . . . . . Robots Corrupted 7 | . . . . 3 4 . . . Combat Hostiles 3 | . . . . 3 . . . . Parts Fried 14 | . . . . 5 9 . . . Impact Corruptions 19 | . . . . 5 14 . . . Robots Melted . | . . . . . . . . . Combat Hostiles . | . . . . . . . . . Parts Melted 1 | . 1 . . . . . . . Heat Transferred 766 | . 407 259 . 100 . . . . Parts Sabotaged . | . . . . . . . . . Parts Stolen . | . . . . . . . . . Parts Stripped 16 | . . . . . . 6 . 10 Power Chain Reactions 2 | . . . . 2 . . . . Alert | -11 -10 -9 -8 -7 -6 -5 -4 -4 ------- Run | Yrd Mat Mat Mat Fac Fac Fac Fac DSF Maximum Alert Level 2 | . . . . 2 1 . . . Low Security (%) 82 | 100 100 100 100 41 76 100 100 100 Level 1 14 | . . . . 43 23 . . . Level 2 3 | . . . . 15 . . . . Level 3 . | . . . . . . . . . Level 4 . | . . . . . . . . . Level 5 . | . . . . . . . . . High Security . | . . . . . . . . . Max Security . | . . . . . . . . . Peak Influence 456 | 5 155 146 175 456 224 109 35 24 Initial 219 | . . 26 55 53 219 109 35 24 Average 118 | . 65 65 111 207 179 85 35 9 Influence Increases 1850 | 15 353 195 232 775 205 55 . 20 Destroy 0b10 Robot/C 680 | . 80 100 160 280 40 . . 20 Destroy 0b10 Robot/NC 160 | 15 5 15 10 40 45 30 . . Destroy Leader 118 | . 20 12 32 42 10 2 . . Allied During Kill 34 | . . . 30 4 . . . . Disable Machine 225 | . . 30 . 180 15 . . . Destroy Structure 108 | . 8 38 . 49 5 8 . . Partial Spotted 45 | . . . . 30 15 . . . Lose Combat Pursuer 480 | . 240 . . 150 75 15 . . Influence Decreases 1850 | 15 290 127 246 444 429 205 39 55 Entered New Map 571 | . . 37 76 64 229 115 39 11 Time Decay 935 | 15 170 70 150 270 170 90 . . Lost Part 284 | . 80 20 . 110 30 . . 44 Lost Ally 60 | . 40 . 20 . . . . . Squads Dispatched 10 | . 2 1 2 2 1 1 . 1 Investigation 2 | . . . 1 . . 1 . . Extermination 2 | . . . . 1 1 . . . Reinforcement 6 | . 2 1 1 1 . . . 1 Assault . | . . . . . . . . . Garrison . | . . . . . . . . . Intercept . | . . . . . . . . . Searches Triggered . | . . . . . . . . . Construction Impeded 1 | . . . . 1 . . . . Haulers Reinforced . | . . . . . . . . . Active Scanning Responses . | . . . . . . . . . Cargo Convoy Interrupts . | . . . . . . . . . Stealth | -11 -10 -9 -8 -7 -6 -5 -4 -4 --------- Run | Yrd Mat Mat Mat Fac Fac Fac Fac DSF Distress Signals 10 | . 5 2 1 1 . 1 . . Communications Jammed . | . . . . . . . . . Distress Signals . | . . . . . . . . . Times Spotted 115 | . 36 13 11 28 15 8 . 4 Peak Tracking Total 8 | . 8 8 4 7 4 3 . 2 Tactical Retreats 19 | . 8 . . 7 3 1 . . Traps | -11 -10 -9 -8 -7 -6 -5 -4 -4 ------- Run | Yrd Mat Mat Mat Fac Fac Fac Fac DSF Traps Triggered 2 | . 1 . . . . 1 . . Indirectly . | . . . . . . . . . Trap Hack Attempts . | . . . . . . . . . Triggered . | . . . . . . . . . Disarmed . | . . . . . . . . . Reprogrammed . | . . . . . . . . . Reused . | . . . . . . . . . Traps Extracted . | . . . . . . . . . Installed . | . . . . . . . . . Triggered . | . . . . . . . . . Machines | -11 -10 -9 -8 -7 -6 -5 -4 -4 ---------- Run | Yrd Mat Mat Mat Fac Fac Fac Fac DSF Machines Disabled 15 | . . 2 . 12 1 . . . Max in Single Turn 4 | . . 1 . 4 1 . . . Garrison Access 2 | . . . . 1 1 . . . Machines Repaired . | . . . . . . . . . Machines Dismantled . | . . . . . . . . . Machines Sabotaged . | . . . . . . . . . Overloaded Fab Kills . | . . . . . . . . . Hacking | -11 -10 -9 -8 -7 -6 -5 -4 -4 --------- Run | Yrd Mat Mat Mat Fac Fac Fac Fac DSF Machines Accessed 6 | . . . . 3 2 . 1 . Terminals 4 | . . . . 2 1 . 1 . Fabricators . | . . . . . . . . . Repair Stations . | . . . . . . . . . Recycling Units . | . . . . . . . . . Scanalyzers . | . . . . . . . . . Garrison Access 2 | . . . . 1 1 . . . Total Hacks 11 | . . . . 6 3 . 2 . Successful 5 | . . . . 3 1 . 1 . Failed 6 | . . . . 3 2 . 1 . Catastrophic . | . . . . . . . . . Database Lockouts . | . . . . . . . . . Manual 5 | . 1 . 1 3 . . . . Terminals 8 | . . . . 4 2 . 2 . Fabricators . | . . . . . . . . . Repair Stations . | . . . . . . . . . Recycling Units . | . . . . . . . . . Scanalyzers . | . . . . . . . . . Garrison Access 3 | . . . . 2 1 . . . Terminal Hacks 2 | . . . . 1 . . 1 . Open DSF 1 | . . . . . . . 1 . Zone Layout 1 | . . . . 1 . . . . Fabricator Hacks . | . . . . . . . . . Repair Station Hacks . | . . . . . . . . . Recycling Unit Hacks . | . . . . . . . . . Scanalyzer . | . . . . . . . . . Garrison Access Hacks 2 | . . . . 1 1 . . . Seal Access 2 | . . . . 1 1 . . . Unauthorized Hacks 1 | . . . . 1 . . . . Terminals 1 | . . . . 1 . . . . Botnet 1 | . . . . 1 . . . . Fabricators . | . . . . . . . . . Repair Stations . | . . . . . . . . . Recycling Units . | . . . . . . . . . Scanalyzers . | . . . . . . . . . Garrison Access . | . . . . . . . . . Data Cores Recovered 1 | . . . . 1 . . . . Used 1 | . . . . 1 . . . . Hacking Detections 3 | . . . . 1 1 . 1 . Full Trace Events . | . . . . . . . . . Feedback Events . | . . . . . . . . . Feedback Blocked . | . . . . . . . . . Robot Schematics Acquired . | . . . . . . . . . Robots Built . | . . . . . . . . . Authchips . | . . . . . . . . . Time . | . . . . . . . . . Total Robot Build Rating . | . . . . . . . . . Part Schematics Acquired . | . . . . . . . . . Parts Built . | . . . . . . . . . Authchips . | . . . . . . . . . Time . | . . . . . . . . . Total Part Build Rating . | . . . . . . . . . Part Studies Acquired . | . . . . . . . . . Parts Repaired . | . . . . . . . . . Time . | . . . . . . . . . Parts Recycled . | . . . . . . . . . Recycled Matter . | . . . . . . . . . Retrieved Matter . | . . . . . . . . . Retrieved Components . | . . . . . . . . . Parts Scanalyzed . | . . . . . . . . . Part Schematics Acquired . | . . . . . . . . . Parts Damaged . | . . . . . . . . . Bothacking | -11 -10 -9 -8 -7 -6 -5 -4 -4 ------------ Run | Yrd Mat Mat Mat Fac Fac Fac Fac DSF Used RIF Installer . | . . . . . . . . . Robots Hacked . | . . . . . . . . . Non-combat . | . . . . . . . . . Combat . | . . . . . . . . . Robot Hacks Applied . | . . . . . . . . . Relay Couplers Released . | . . . . . . . . . Fabnet Peak Effective % . | . . . . . . . . . Robots Rewired . | . . . . . . . . . Allies Hacked . | . . . . . . . . . Hacks Repelled . | . . . . . . . . . Allies | -11 -10 -9 -8 -7 -6 -5 -4 -4 -------- Run | Yrd Mat Mat Mat Fac Fac Fac Fac DSF Total Allies 5 | . 2 . 3 . . . . . Largest Group 3 | . 2 . 3 2 . . . . Highest-Rated Group 63 | . 16 . 63 42 . . . . Highest-Rated Ally 21 | . 8 . 21 21 . . . . Total Orders . | . . . . . . . . . Ally Attacks 36 | . 7 . 25 4 . . . . Total Damage 647 | . 54 . 513 80 . . . . Kills 10 | . 1 . 7 2 . . . . Allies Corrupted . | . . . . . . . . . Allies Melted . | . . . . . . . . . X0-1V1 Amusement Gains 105 | . 33 . . . 8 2 . 62 Good Acts 20 | . 1 2 1 8 5 3 . . Bad Acts 10 | . 1 . 2 4 1 2 . . Intel | -11 -10 -9 -8 -7 -6 -5 -4 -4 ------- Run | Yrd Mat Mat Mat Fac Fac Fac Fac DSF Active Infowar (turns) 691 | 57 559 . . . . 22 1 52 Seismic 691 | 57 559 . . . . 22 1 52 Robot Analysis Total . | . . . . . . . . . Derelict Logs Recovered . | . . . . . . . . . Drone Launches . | . . . . . . . . . Drone Recoveries . | . . . . . . . . . Exploration | -11 -10 -9 -8 -7 -6 -5 -4 -4 ------------- Run | Yrd Mat Mat Mat Fac Fac Fac Fac DSF Turns Passed 2424 | 161 586 148 319 582 358 193 1 76 Spaces Moved 2908 | 90 794 136 199 714 572 344 3 56 Core 147 | 3 16 92 . . . . . 36 Treads . | . . . . . . . . . Legs 392 | 87 56 44 199 6 . . . . Wheels . | . . . . . . . . . Hover 2369 | . 722 . . 708 572 344 3 20 Flight . | . . . . . . . . . Fastest Speed 40 | 50 50 50 120 43 40 45 45 45 Average Speed 58 | 117 61 72 120 45 43 45 45 85 Slowest Speed 550 | 120 120 120 120 180 108 105 45 550 Overloaded Moves . | . . . . . . . . . Propulsion Burnouts . | . . . . . . . . . Robots Hopped . | . . . . . . . . . Potential Cave-ins . | . . . . . . . . . Cave-ins Triggered . | . . . . . . . . . Exploration Rate (%) 31 | 5 89 23 27 23 22 16 . 48 Regions Visited 8 Branch Regions . Pre-discovered Areas . | . . . . . . . . . Known Exits Taken 3 | . . . . . 1 1 1 . Unknown Exits Taken 5 | 1 1 1 1 1 . . . . Scrap Searched . | . . . . . . . . . Spaces Dug 11 | . . . . 2 5 4 . . Terrain Destroyed 106 | . 8 42 . 47 5 4 . . Melee 11 | . . . . 2 5 4 . . Projectile . | . . . . . . . . . AOE 95 | . 8 42 . 45 . . . . Terrain Rammed . | . . . . . . . . . Walls Destroyed . | . . . . . . . . . Machines Disabled . | . . . . . . . . . Actions | -11 -10 -9 -8 -7 -6 -5 -4 -4 --------- Run | Yrd Mat Mat Mat Fac Fac Fac Fac DSF Total 3376 | 120 880 167 258 875 634 364 2 76 Wait 175 | 5 52 2 29 51 22 3 . 11 Move 2900 | 89 793 135 198 713 571 343 2 56 Hop . | . . . . . . . . . Pick Up 29 | 5 8 . 2 10 3 1 . . Fast Attach 45 | 7 5 4 7 13 6 2 . 1 Attach 19 | . 3 5 . 5 3 2 . 1 Detach 6 | . . 2 . 2 2 . . . Swap 11 | 1 4 2 . 3 1 . . . Drop 26 | . 9 2 2 10 . 2 . 1 Fire 99 | 13 5 15 18 48 . . . . Melee 63 | . . . . 20 26 11 . 6 Ram 1 | . 1 . . . . . . . Kick 2 | . . . 2 . . . . . Crush . | . . . . . . . . . Escape Stasis . | . . . . . . . . . Rewire . | . . . . . . . . . Trap . | . . . . . . . . . Miscellaneous . | . . . . . . . . . Route ------- -11/Scrapyard -10/Materials (discovered 5 exits: [*Mat x3] / [*Min x2]) -9/Materials -8/Materials -7/Factory (discovered 2 exits: *Fac / [*Low]) -6/Factory -5/Factory -4/Factory -4/DSF (discovered 1 exit: [*Res]) History --------- Turn | Location | Event 6 | -11/Scrapyard | Discovered new exit (range 15) 162 | -11/Scrapyard | Entered Materials 320 | -10/Materials | Build established: Mutant 324 | -10/Materials | Discovered new exit (range 10) 364 | -10/Materials | Discovered new exit (range 7) 422 | -10/Materials | Discovered new exit (range 3) 441 | -10/Materials | Discovered new exit (range 9) 456 | -10/Materials | Discovered new exit (range 11) 677 | -10/Materials | Lost 3 parts (1n2w) 706 | -10/Materials | Prayed at D.C.S.S. Altar Unit 737 | -10/Materials | X0-1V1 sent allied G-34 Mercenary (x2) 748 | -10/Materials | Entered another Materials area 748 | -9/Materials | Evolved 2 slots: Propulsion x1, Utility x1 766 | -9/Materials | Lost 4 parts (1p2n1u) 770 | -9/Materials | Energy generation permanently improved by X0-1V1 (+10) 866 | -9/Materials | X0-1V1 foreshadows a heat wave 880 | -9/Materials | Discovered new exit (range 13) 896 | -9/Materials | Entered another Materials area 896 | -8/Materials | Evolved 2 slots: Propulsion x1, Utility x1 946 | -8/Materials | X0-1V1 sent you to a vault 1094 | -8/Materials | Discovered new exit (range 15) 1119 | -8/Materials | X0-1V1 mutated your Utility slot to Power slot 1215 | -8/Materials | Entered Factory 1215 | -7/Factory | Accompanied by 2 allies 1215 | -7/Factory | Evolved 2 slots: Utility x2 1313 | -7/Factory | Discovered new exit (range 15) 1366 | -7/Factory | X0-1V1 announced a LAN party 1403 | -7/Factory | Heat dissipation permanently improved by X0-1V1 (+15) 1532 | -7/Factory | Build established: Hacker-Mutant 1566 | -7/Factory | Energy capacity permanently improved by X0-1V1 (+200) 1773 | -7/Factory | Discovered new exit (range 7) 1794 | -7/Factory | X0-1V1 activates XOMVISION 1797 | -7/Factory | Entered another Factory area 1797 | -6/Factory | Evolved 2 slots: Propulsion x1, Utility x1 1907 | -6/Factory | Identified exit to Factory 1907 | -6/Factory | X0-1V1 revealed exit location to -5/Factory 1931 | -6/Factory | Spotted B-75 Beast 1936 | -6/Factory | X0-1V1 sent you to a vault 1938 | -6/Factory | Found Prototype Slashing Weapon 1938 | -6/Factory | Identified Scimitar of Distortion 2098 | -6/Factory | X0-1V1 redirected Transport squads to designated parking area 2119 | -6/Factory | Lost 3 parts (3n) 2155 | -6/Factory | Entered another Factory area 2155 | -5/Factory | Evolved 2 slots: Propulsion x1, Utility x1 2161 | -5/Factory | X0-1V1 activates XOMVISION 2184 | -5/Factory | Identified exit to Factory 2184 | -5/Factory | X0-1V1 revealed exit location to -4/Factory 2348 | -5/Factory | Entered another Factory area 2348 | -4/Factory | Evolved 2 slots: Utility x2 2349 | -4/Factory | Identified exit to DSF 2349 | -4/Factory | Entered DSF 2369 | -4/DSF | Additional patrols routed to DSF 2406 | -4/DSF | Core integrity fell below 50% 2423 | -4/DSF | Discovered new exit (range 15) 2424 | -4/DSF | Core integrity fell below 20% 2425 | -4/DSF | Destroyed by H-71 Marshal with Heavy Mass Driver Last Messages --------------- 02388_ X-77 Beamer sundered. 02388_ X-77 Beamer destroyed. 02390_ Airjet destroyed. 02394_ Angular Momentum Engine destroyed. Form resolidifies at new position. 02399_ Penetrated by Slug. 02399_ Knocked back. 02401_ Penetrated by Slug. 02401_ Kinetic Spear destroyed. 02401_ X0-1V1's Piety Tracker destroyed. 02401_ X0-1V1 is mildly amused. 02401_ Seismic Detector destroyed. 02401_ Knocked back. 02406_ Dropped Med. Storage Unit. 02409_ Scimitar of Distortion destroyed. X0-1V1's Piety Tracker suddenly appears amidst shimmering waves of color. 02423_ Knocked back. 02423_ EXIT=FOUND 02425_ Acquired X0-1V1's Piety Tracker. 02425_ X0-1V1 giggles madly! Map ----- +----------------------------------------------------+ | ???????????????????????????????????? | | ???????????????????????????????????? | | ????????????????????????##?????????? | | ?????????##????????????#""?????????? | | ?????????# ????????????#"#?????????? | | ??????####"####???????##"####??????? | | ??????#==!!! #########"""""#??????? | | ??????#==!!! # #[[##"""""#??????? | | ??????# ""##"????? | | ??????# """""????? | | ??????### %###[[[#[[## ""###????? | | ??????### ###[[[#[[### ###??????? | | ??????# ]!!!##########x ##???????? | | ??????# %/!!#??????#[[[[[#???????? | | ??????# !!#??????#[[!![#???????? | | ??????###% ###??????###=*##???????? | | ??????#[[ !!#??????#[[!=!#???????? | | ??????#[[ !!#??????#[[ [%#???????? | | ??????#[[ !!#??????#[[ #???????? | | ??????### ###???###### ###??????? | | ????????# #?#[??#!!!?# %!!#??????? | | ???????? ##[[[#!!!## !!#??????? | | ??????? H //#??????? | | ??????? //#??????? | | ?????? //#??????? | | ?????[## ##!!!#===## @[[#??????? | | ?????[?## #?#!!?#===?# [[#??????? | | ????#???# ??#???###??# %###??????? | | ????????! ???????????! ????????? | | ????????! ??????????!! ????????? | | ????????! ?????????#!! ????????? | | ????????? ?????????### ##???????? | | ???????????????????????! ????????? | | ???????????????????????! ????????? | | ???????????????????????# #????????? | | ???????????????????????# ?????????? | | ??????????????????????? ?????????? | | ??????????????????????? ?????????? | | ???????????????????????